bitfinex/quotes_ETHUSD_20251213
["timestamp","ask_amount","ask_price","bid_price","bid_amount"]
[1765662225789,0.38528553,3108.1,3108.0,3.21750321]
[1765662227522,0.38528553,3108.1,3107.9,3.21750908]
[1765662227826,0.511,3108.2,3107.9,10.12242256]
[1765662228003,0.30107257,3108.1,3108.0,0.4502]
[1765662228826,0.084,3108.6,3108.0,4.7499]
[1765662229027,0.81197036,3108.5,3108.1,3.83]
[1765662229201,0.30097036,3108.4,3108.1,0.6563]
[1765662229403,0.72710119,3108.7,3108.3,9.65157801]
[1765662229404,1.23810119,3108.7,3108.3,9.65157801]
[1765662229593,0.30082097,3108.6,3108.3,10.10177801]
[1765662229800,1.23810119,3108.7,3108.3,10.57147801]
[1765662229994,0.30081928,3108.6,3108.3,10.57147801]
[1765662230212,1.23810119,3108.7,3108.3,10.10177801]
[1765662230522,0.511,3108.7,3108.3,10.10177801]
[1765662230725,0.511,3108.7,3108.3,10.57147801]
[1765662230928,0.11898847,3109.3,3108.4,0.58047529]
[1765662231098,0.084,3109.0,3108.4,0.58047529]
[1765662231290,0.30065026,3108.9,3108.4,0.58047529]
[1765662231494,0.30065026,3108.8,3108.5,6.43397136]
[1765662231701,0.084,3109.0,3108.5,6.43397136]
[1765662231909,0.30049176,3108.9,3108.5,6.43397136]
[1765662232102,0.30049176,3108.8,3108.5,6.43397136]
[1765662232307,0.30036844,3108.9,3108.5,6.43397136]
[1765662232525,0.11898847,3109.3,3108.5,9.65095704]
[1765662232831,0.89536844,3109.2,3108.5,10.12065704]
[1765662233035,0.30036844,3109.1,3108.5,10.12065704]
[1765662233197,0.30036844,3109.0,3108.5,10.12065704]
[1765662233397,0.084,3109.1,3108.5,10.12065704]
[1765662233599,0.30025457,3109.0,3108.5,10.12065704]
[1765662233799,0.30025457,3109.0,3108.6,0.4697]
[1765662234031,0.511,3109.1,3108.6,0.4697]
[1765662234247,0.81125457,3109.1,3108.6,0.4697]
[1765662234429,0.511,3109.1,3108.6,0.4697]
[1765662234835,0.81113077,3109.1,3108.6,0.4697]
[1765662235036,0.511,3109.1,3108.6,2.11809582]
[1765662235544,0.81104647,3109.1,3108.7,0.4683]
[1765662235850,0.511,3109.1,3108.8,6.43335048]
[1765662236647,0.511,3109.1,3108.8,6.90165048]
[1765662236945,0.511,3109.1,3109.0,0.4523]
[1765662237148,0.511,3109.2,3108.9,0.4683]
[1765662237445,0.511,3109.2,3108.8,9.65002572]
[1765662237653,0.511,3109.2,3108.9,0.4683]
[1765662237873,0.461,3109.2,3108.9,0.4683]
[1765662238050,0.62998847,3109.3,3109.1,0.4523]
[1765662238217,0.62998847,3109.3,3109.2,0.4523]
[1765662238423,0.62998847,3109.3,3108.9,0.4683]
[1765662238635,0.62998847,3109.3,3108.9,2.06907105]
[1765662239117,0.62998847,3109.3,3109.0,6.43293662]
[1765662240249,0.11898847,3109.3,3109.0,6.43293662]
[1765662240427,0.11898847,3109.3,3109.2,0.4523]
[1765662240942,0.20298847,3109.3,3109.0,6.43293662]
[1765662241145,0.084,3109.2,3109.0,8.20662424]
[1765662241943,0.11898847,3109.3,3109.1,0.4523]
[1765662242273,0.11898847,3109.3,3109.0,8.20662424]
[1765662242934,0.11898847,3109.3,3109.0,8.67492424]
[1765662243665,0.11898847,3109.3,3109.1,4.41047529]
[1765662243840,0.11898847,3109.3,3109.2,3.83]
[1765662244379,0.11898847,3109.3,3109.2,4.7506]
[1765662244656,0.28698847,3109.3,3109.2,3.83]
[1765662246435,0.20298847,3109.3,3109.2,7.04626141]
[1765662246837,0.28698847,3109.3,3109.2,7.04626141]
[1765662249873,0.28698847,3109.3,3109.2,3.21626141]
[1765662251273,0.20298847,3109.3,3109.2,3.21626141]
[1765662251644,0.28698847,3109.3,3109.2,3.21626141]
[1765662252244,0.58704352,3109.3,3109.2,3.21626141]
[1765662252749,0.20298847,3109.3,3109.2,3.21626141]
[1765662252968,0.20298847,3109.3,3109.2,4.13686141]
[1765662252969,0.11898847,3109.3,3109.2,4.13686141]
[1765662255673,0.11898847,3109.3,3109.2,7.96686141]
[1765662255978,0.11898847,3109.3,3109.2,9.87810256]
[1765662260087,0.11898847,3109.3,3109.2,10.45857785]
[1765662260586,0.11898847,3109.3,3109.2,10.58736478]
[1765662262189,0.42009321,3109.3,3109.2,10.45857785]
[1765662263801,0.42009321,3109.3,3109.2,9.99027785]
[1765662263980,0.42009321,3109.3,3109.2,7.6267367]
[1765662263981,0.50409321,3109.3,3109.2,7.6267367]
[1765662264201,0.58809321,3109.3,3109.2,7.6267367]
[1765662264701,0.58809321,3109.3,3109.2,3.7967367]
[1765662264899,0.50409321,3109.3,3109.2,3.21626141]
[1765662265090,0.58809321,3109.3,3109.2,3.21626141]
[1765662266804,0.58809321,3109.3,3109.0,6.43283752]
[1765662267003,0.30110474,3109.2,3109.0,6.43283752]
[1765662267206,0.30110474,3109.1,3109.0,3.21636921]
[1765662267504,0.30110474,3109.1,3109.0,4.34366378]
[1765662267799,0.30110474,3109.1,3109.0,4.81296378]
[1765662267973,0.30110474,3109.1,3109.0,5.31096378]
[1765662270702,0.30110474,3109.1,3109.0,8.01366921]
[1765662270895,0.30110474,3109.1,3109.0,7.51566921]
[1765662272592,0.38510474,3109.1,3109.0,7.04636921]
[1765662274216,0.30110474,3109.1,3109.0,7.04636921]
[1765662274415,0.30110474,3109.1,3109.0,7.51566921]
[1765662274715,0.97910474,3109.1,3109.0,3.83]
[1765662276507,0.97910474,3109.1,3108.9,3.21654361]
[1765662276808,0.46910474,3109.0,3108.7,3.21676037]
[1765662277012,0.084,3108.8,3108.7,3.79723566]
[1765662277211,0.38510474,3108.8,3108.7,3.79723566]
[1765662278504,0.38510474,3108.8,3108.7,3.21676037]
[1765662280718,0.30110474,3108.8,3108.7,3.21676037]
[1765662281020,0.30110474,3108.8,3108.7,5.56222426]
[1765662281814,0.30110474,3108.8,3108.7,5.06422426]
[1765662282520,0.30110474,3108.8,3108.7,8.89422426]
[1765662282684,0.30110474,3108.8,3108.7,9.39222426]
[1765662287425,0.30110474,3108.8,3108.7,8.89422426]
[1765662287789,0.30110474,3108.8,3108.7,9.39222426]
[1765662292530,0.30110474,3108.8,3108.7,8.89422426]
[1765662296140,0.38510474,3108.8,3108.7,7.04676037]
[1765662297006,0.30110474,3108.8,3108.7,7.53916037]
[1765662299039,0.30110474,3108.8,3108.7,8.01526037]
[1765662299342,0.38510474,3108.8,3108.7,7.04676037]
[1765662300744,0.30110474,3108.8,3108.7,8.01526037]
[1765662300926,0.38510474,3108.8,3108.7,7.04676037]
[1765662302208,0.46910474,3108.8,3108.7,7.04676037]
[1765662302804,0.38510474,3108.8,3108.7,7.04676037]
[1765662303652,0.30110474,3108.8,3108.7,9.36331352]
[1765662304432,0.30110474,3108.8,3108.7,8.88721352]
[1765662304632,0.30110474,3108.8,3108.7,9.36331352]
[1765662305305,0.30110474,3108.8,3108.7,8.39481352]
[1765662305508,0.38510474,3108.8,3108.7,7.04676037]
[1765662308207,0.30110474,3108.8,3108.7,7.53916037]
[1765662308926,0.30110474,3108.8,3108.7,8.01526037]
[1765662316462,0.30110474,3108.8,3108.7,7.53916037]
[1765662316666,0.30168886,3108.8,3108.7,9.45513472]
[1765662316862,0.30168886,3108.8,3108.7,9.93123472]
[1765662323871,0.30161427,3108.8,3108.7,9.93123472]
[1765662326081,0.30161427,3108.8,3108.7,10.44123472]
[1765662327879,0.30158003,3108.8,3108.7,10.44123472]
[1765662328357,0.20298847,3109.3,3108.7,13.65801343]
[1765662328557,0.30156454,3109.2,3108.7,11.74203908]
[1765662328766,0.30156454,3109.1,3108.7,11.23203908]
[1765662328979,0.30156454,3109.0,3108.8,0.51]
[1765662329184,0.30156454,3108.9,3108.8,0.51]
[1765662329387,0.30156454,3108.9,3108.8,0.9683]
[1765662329589,0.30156454,3108.9,3108.8,3.05045511]
[1765662329769,0.30156454,3108.9,3108.8,6.26713035]
[1765662330082,0.30156454,3108.9,3108.8,10.09713035]
[1765662331582,0.38556454,3108.9,3108.8,7.55667524]
[1765662332295,0.30156454,3108.9,3108.8,7.55667524]
[1765662335293,0.38556454,3108.9,3108.8,7.55667524]
[1765662336598,0.30156454,3108.9,3108.8,7.55667524]
[1765662337175,0.38556454,3108.9,3108.8,7.55667524]
[1765662337370,0.30156454,3108.9,3108.8,8.50287524]
[1765662337692,0.46956454,3108.9,3108.8,9.19964923]
[1765662337866,0.46956454,3108.9,3108.8,7.55667524]
[1765662343880,0.38556454,3108.9,3108.8,7.55667524]
[1765662345610,0.30156454,3108.9,3108.8,7.55667524]
[1765662347020,0.38556454,3108.9,3108.8,7.55667524]
[1765662349989,0.30156454,3108.9,3108.8,8.50287524]
[1765662350203,0.30156454,3108.9,3108.8,9.6748388]
[1765662351137,0.38556454,3108.9,3108.8,8.7286388]
[1765662351292,0.38556454,3108.9,3108.8,7.55667524]
[1765662353623,0.30156454,3108.9,3108.8,8.04457524]
[1765662353823,0.30156454,3108.9,3108.8,8.50287524]
[1765662354327,0.30156454,3108.9,3108.8,8.04457524]
[1765662355222,0.38556454,3108.9,3108.8,7.55667524]
[1765662355789,0.30156454,3108.9,3108.8,7.55667524]
[1765662356424,0.30156454,3108.9,3108.8,8.51517524]
[1765662363430,0.38556454,3108.9,3108.8,7.55667524]
[1765662363735,0.46956454,3108.9,3108.8,7.55667524]
[1765662364604,0.46956454,3108.9,3108.8,4.34]
[1765662365941,0.46956454,3108.9,3108.4,3.2170086]
[1765662366237,0.46956454,3108.9,3108.3,4.18350631]
[1765662366238,1.73525418,3108.8,3108.3,4.18350631]
[1765662366439,0.30156454,3108.7,3108.3,4.18350631]
[1765662366637,0.084,3108.4,3108.3,4.18350631]
[1765662366934,0.38556454,3108.4,3108.3,4.18350631]
[1765662367140,0.46956454,3108.4,3108.3,4.18350631]
[1765662367834,0.38556454,3108.4,3108.3,4.18353341]
[1765662368016,0.46956454,3108.4,3108.3,4.18353341]
[1765662369006,0.46956454,3108.4,3108.3,0.96634074]
[1765662369444,0.46956454,3108.4,3108.3,4.18353341]
[1765662370412,0.38556454,3108.4,3108.3,4.18353341]
[1765662371515,0.30156454,3108.4,3108.3,8.01353341]
[1765662372034,0.46956454,3108.4,3108.3,8.01353341]
[1765662373746,0.38556454,3108.4,3108.3,8.01353341]
[1765662378538,0.46956454,3108.4,3108.3,8.01353341]
[1765662378849,0.38556454,3108.4,3108.3,4.79634074]
[1765662379150,0.46956454,3108.4,3108.3,3.83]
[1765662382145,0.38556454,3108.4,3108.3,3.83]
[1765662382522,0.88081016,3108.4,3108.3,3.83]
[1765662382927,8.81023824,3108.4,3107.9,0.002]
[1765662383257,0.084,3108.0,3107.9,0.002]
[1765662383443,0.89556454,3108.0,3107.9,0.002]
[1765662383629,0.97956454,3108.0,3107.9,0.002]
[1765662384435,0.89556454,3108.0,3107.9,0.002]
[1765662384635,0.97956454,3108.0,3107.9,0.002]
[1765662385768,0.89556454,3108.0,3107.9,0.002]
[1765662386567,0.97956454,3108.0,3107.9,0.002]
[1765662387666,4.61675437,3108.0,3107.9,0.002]
[1765662387878,1.39925116,3108.0,3107.9,0.002]
[1765662388099,4.19925116,3108.0,3107.9,0.002]
[1765662388368,7.41675437,3108.0,3107.9,0.002]
[1765662390144,7.54564588,3108.0,3107.9,0.002]
[1765662392674,3.31445605,3108.0,3107.9,0.002]
[1765662392851,3.61156454,3108.0,3107.9,0.9916]
[1765662393480,3.18556454,3108.0,3107.9,0.002]
[1765662393683,3.69556454,3108.0,3107.9,0.002]
[1765662393852,3.26956454,3108.0,3107.9,0.002]
[1765662394048,4.398516,3108.0,3107.9,0.002]
[1765662394261,4.908516,3108.0,3107.9,0.002]
[1765662396251,4.89949112,3108.0,3107.9,0.002]
[1765662396658,4.81549112,3108.0,3107.9,0.002]
[1765662396983,4.89949112,3108.0,3107.9,0.002]
[1765662397882,4.81549112,3108.0,3107.9,0.002]
[1765662401076,4.89949112,3108.0,3107.9,0.002]
[1765662401596,8.12601921,3108.0,3107.9,0.002]
[1765662401800,8.11699433,3108.0,3107.9,0.002]
[1765662402996,8.24588916,3108.0,3107.9,0.002]
[1765662403890,19.00793916,3108.0,3107.9,0.002]
[1765662404196,14.63361016,3108.0,3107.9,0.002]
[1765662407906,19.35094074,3108.0,3107.9,0.002]
[1765662408075,19.93141603,3108.0,3107.9,0.002]
[1765662408807,0.084,3107.5,3107.2,0.002]
[1765662409004,0.084,3107.3,3107.2,0.002]
[1765662409307,0.38490793,3107.3,3107.2,0.002]
[1765662409503,0.46890793,3107.3,3107.2,0.002]
[1765662410071,0.38490793,3107.3,3107.2,0.002]
[1765662410276,11.47484322,3107.3,3107.2,0.002]
[1765662410580,12.4182119,3107.3,3107.2,0.002]
[1765662410973,0.98597929,3107.2,3106.7,0.002]
[1765662411303,16.4237271,3107.2,3106.7,0.002]
[1765662411496,14.95380138,3107.2,3106.7,0.002]
[1765662411996,19.67416169,3107.2,3106.7,0.002]
[1765662412193,20.08540731,3107.2,3106.7,0.002]
[1765662412395,33.65813631,3107.2,3106.7,0.002]
[1765662412797,4.72036031,3106.5,3106.3,0.002]
[1765662412996,4.19806837,3106.4,3106.3,0.002]
[1765662413394,4.11406837,3106.4,3106.3,0.002]
[1765662413593,5.23399495,3106.4,3106.3,0.002]
[1765662416212,12.84100195,3106.4,3106.3,0.002]
[1765662416404,13.42147724,3106.4,3106.3,0.002]
[1765662417217,13.55045021,3106.4,3106.3,0.002]
[1765662417577,13.31795652,3106.4,3106.3,0.002]
[1765662418292,10.74780352,3106.4,3106.3,0.002]
[1765662420906,10.74780352,3106.4,3106.3,0.4607]
[1765662420907,1.54980748,3106.4,3106.3,0.4607]
[1765662421106,0.30090793,3106.4,3106.3,0.9168]
[1765662421431,0.51,3106.4,3106.3,4.13606407]
[1765662423017,0.29926385,3106.9,3106.3,4.13606407]
[1765662423217,0.29926385,3106.9,3106.8,0.4587]
[1765662423520,1.21909307,3106.9,3106.8,0.4587]
[1765662423710,1.21909307,3106.9,3106.8,0.9148]
[1765662424038,0.29926385,3106.9,3106.8,0.9148]
[1765662424226,0.51,3107.0,3106.8,4.13354597]
[1765662424424,0.51,3107.0,3106.9,0.4561]
[1765662424604,0.51,3107.0,3106.9,0.9148]
[1765662426430,0.51,3107.0,3106.9,4.13344237]
[1765662426743,0.51,3107.0,3106.9,0.9148]
[1765662427540,0.80949821,3107.0,3106.9,0.9148]
[1765662427736,0.51,3107.0,3106.9,0.9148]
[1765662428927,0.594,3107.0,3106.5,0.4561]
[1765662429115,0.594,3107.0,3106.5,3.21904369]
[1765662429314,0.9752444,3107.0,3106.6,0.4561]
[1765662430245,0.29985069,3106.9,3106.6,0.4561]
[1765662430955,0.29985069,3106.9,3106.6,3.67503173]
[1765662431122,0.29985069,3106.9,3106.8,0.4587]
[1765662435252,0.29985069,3106.9,3106.8,0.9148]
[1765662435930,0.80985069,3106.9,3106.8,0.9148]
[1765662439740,0.89385069,3106.9,3106.5,3.67511437]
[1765662440044,0.29985069,3106.8,3106.5,3.67511437]
[1765662440238,0.29985069,3106.7,3106.6,0.4561]
[1765662440667,0.29985069,3106.7,3106.6,0.9148]
[1765662441649,0.29985069,3106.7,3106.6,4.13375319]
[1765662442952,0.29985069,3106.7,3106.6,0.9148]
[1765662443157,0.29985069,3106.7,3106.6,4.13375319]
[1765662443758,0.29985069,3106.7,3106.6,0.9148]
[1765662445141,0.29985069,3106.7,3106.6,4.13375319]
[1765662445339,0.29985069,3106.7,3106.6,0.9148]
[1765662445860,0.29985069,3106.7,3106.6,4.13375319]
[1765662447341,0.30088143,3106.7,3106.6,4.13375319]
[1765662447552,0.30088143,3106.7,3106.6,0.9148]
[1765662448240,0.30088143,3106.7,3106.6,4.13375319]
[1765662449244,0.30088143,3106.7,3106.6,0.9148]
[1765662449770,0.30088143,3106.7,3106.6,4.13375319]
[1765662450067,0.30088143,3106.7,3106.3,0.002]
[1765662450068,3.60373369,3106.7,3106.3,0.002]
[1765662450246,0.084,3106.4,3106.3,0.002]
[1765662450447,0.89388143,3106.4,3106.3,0.002]
[1765662450833,0.80988143,3106.4,3106.3,0.4541]
[1765662452458,0.30088143,3106.4,3106.3,0.4541]
[1765662452762,0.80988143,3106.4,3106.3,0.9332]
[1765662454465,0.81037126,3106.4,3106.3,0.9332]
[1765662455359,0.81037126,3106.4,3106.3,0.4541]
[1765662456236,0.81037126,3106.4,3106.3,0.002]
[1765662456437,1.21330532,3106.4,3106.3,0.002]
[1765662456762,9.32738938,3106.4,3106.3,0.002]
[1765662456962,9.3183645,3106.4,3106.3,0.002]
[1765662465181,4.51746576,3106.4,3106.3,0.002]
[1765662465820,4.60146576,3106.4,3106.3,0.002]
[1765662465995,9.3193645,3106.4,3106.3,0.002]
[1765662466378,9.2353645,3106.4,3106.3,0.002]
[1765662466912,9.3193645,3106.4,3106.3,0.002]
[1765662469870,0.98597929,3106.1,3106.0,0.002]
[1765662470176,22.55202417,3106.1,3106.0,0.002]
[1765662470372,22.62699929,3106.1,3106.0,0.002]
[1765662471398,30.56436939,3106.1,3106.0,0.002]
[1765662471595,30.03871339,3106.1,3106.0,0.002]
[1765662471910,24.86778292,3106.1,3106.0,0.002]
[1765662472077,15.11361792,3106.1,3106.0,0.002]
[1765662472597,11.98914094,3106.1,3106.0,0.002]
[1765662474495,11.49314094,3106.1,3106.0,0.002]
[1765662474703,4.69531791,3106.1,3106.0,0.002]
[1765662475068,4.78834279,3106.1,3106.0,0.002]
[1765662475693,4.48697153,3106.1,3106.0,0.002]
[1765662475894,6.3617212,3106.1,3106.0,0.002]
[1765662476095,6.35269632,3106.1,3106.0,0.002]
[1765662479804,6.26869632,3106.1,3106.0,0.002]
[1765662480005,10.99113178,3106.1,3106.0,0.002]
[1765662480671,5.67469632,3106.1,3106.0,0.002]
[1765662480895,4.70339498,3106.1,3106.0,0.002]
[1765662481094,0.30944833,3106.1,3106.0,0.4525]
[1765662481399,0.81042345,3106.1,3106.0,0.9495]
[1765662481605,4.02989481,3106.1,3106.0,0.9495]
[1765662481807,4.11389481,3106.1,3106.0,0.002]
[1765662481969,4.90527592,3106.1,3106.0,0.002]
[1765662482177,9.72073626,3106.1,3106.0,0.002]
[1765662482372,9.71171138,3106.1,3106.0,0.002]
[1765662482907,9.62771138,3106.1,3106.0,0.002]
[1765662484906,4.31127592,3106.1,3106.0,0.4525]
[1765662485209,0.81042345,3106.1,3106.0,0.9495]
[1765662485591,0.30042345,3106.1,3106.0,0.9495]
[1765662485804,0.81042345,3106.1,3106.0,0.9495]
[1765662486182,0.81042345,3106.1,3106.0,4.16907501]
[1765662486383,0.81042345,3106.1,3106.0,0.9495]
[1765662487793,0.81124999,3106.1,3106.0,4.16907501]
[1765662487998,0.81124999,3106.1,3106.0,0.9495]
[1765662488314,0.30124999,3106.1,3106.0,4.16907501]
[1765662488524,0.81124999,3106.1,3106.0,4.16907501]
[1765662489195,0.30124999,3106.1,3106.0,4.16907501]
[1765662489400,0.81124999,3106.1,3106.0,4.16907501]
[1765662493024,0.30124999,3106.1,3106.0,4.16907501]
[1765662510240,0.81024999,3106.1,3106.0,4.16907501]
[1765662511257,0.81024999,3106.1,3106.0,0.002]
[1765662511439,0.89424999,3106.1,3106.0,0.002]
[1765662511640,0.97824999,3106.1,3106.0,0.002]
[1765662512154,0.89424999,3106.1,3106.0,0.002]
[1765662512548,0.81024999,3106.1,3106.0,0.4906]
[1765662514667,0.81024999,3106.1,3106.0,0.002]
[1765662514668,0.89424999,3106.1,3106.0,0.002]
[1765662514837,4.52508352,3106.1,3106.0,0.002]
[1765662515038,4.60908352,3106.1,3106.0,0.002]
[1765662518136,4.6181084,3106.1,3106.0,0.002]
[1765662518338,4.60908352,3106.1,3106.0,0.002]
[1765662521973,4.73806605,3106.1,3106.0,0.002]
[1765662523290,4.60908352,3106.1,3106.0,0.002]
[1765662529683,4.74709093,3106.1,3106.0,0.002]
[1765662529852,23.19789693,3106.1,3106.0,0.002]
[1765662530049,22.58295005,3106.1,3106.0,0.002]
[1765662530250,21.43197005,3106.1,3106.0,0.002]
[1765662530466,21.43139853,3106.1,3106.0,0.002]
[1765662530652,4.65349453,3106.1,3106.0,0.002]
[1765662532477,4.73749453,3106.1,3106.0,0.002]
[1765662533894,9.45981881,3106.1,3106.0,0.002]
[1765662535111,9.37581881,3106.1,3106.0,0.002]
[1765662536903,9.45981881,3106.1,3106.0,0.002]
[1765662537813,9.37581881,3106.1,3106.0,0.002]
[1765662540511,5.64734745,3106.1,3106.0,0.002]
[1765662540822,5.94336492,3106.1,3106.0,0.479]
[1765662540986,9.24683628,3106.1,3106.0,0.002]
[1765662541597,8.65383628,3106.1,3106.0,0.002]
[1765662541792,9.16283628,3106.1,3106.0,0.002]
[1765662541998,9.24683628,3106.1,3106.0,0.002]
[1765662542987,6.02736492,3106.1,3106.0,0.002]
[1765662543322,9.37582172,3106.1,3106.0,0.002]
[1765662544015,9.16283628,3106.1,3106.0,0.002]
[1765662544718,9.24683628,3106.1,3106.0,0.002]
[1765662545922,5.94336492,3106.1,3106.0,0.9764]
[1765662548130,0.71204064,3106.1,3106.0,0.479]
[1765662548303,0.71204064,3106.1,3106.0,0.9764]
[1765662548304,0.80967847,3106.1,3106.0,0.9764]
[1765662548503,4.02914983,3106.1,3106.0,0.479]
[1765662548710,4.11314983,3106.1,3106.0,0.002]
[1765662548898,5.33605127,3106.1,3106.0,0.002]
[1765662549098,2.11657991,3106.1,3106.0,0.002]
[1765662549403,2.10755503,3106.1,3106.0,0.002]
[1765662551429,2.02355503,3106.1,3106.0,0.002]
[1765662551939,6.74521092,3106.1,3106.0,0.479]
[1765662552227,9.96468228,3106.1,3106.0,0.002]
[1765662552397,10.04868228,3106.1,3106.0,0.002]
[1765662553837,6.82921092,3106.1,3106.0,0.002]
[1765662555646,2.02355503,3106.1,3106.0,0.9764]
[1765662555941,0.80967847,3106.1,3106.0,0.9764]
[1765662561045,5.53133436,3106.1,3106.0,0.9764]
[1765662561209,5.53133436,3106.1,3106.0,0.479]
[1765662562709,5.53133436,3106.1,3106.0,0.002]
[1765662562910,5.61533436,3106.1,3106.0,0.002]
[1765662563107,9.71827681,3106.1,3106.0,0.002]
[1765662563344,6.58280545,3106.1,3106.0,0.002]
[1765662563645,6.49880545,3106.1,3106.0,0.002]
[1765662564762,6.41480545,3106.1,3106.0,0.479]
[1765662564921,6.41480545,3106.1,3106.0,0.9764]
[1765662565436,6.41480545,3106.1,3106.0,0.479]
[1765662566317,6.41480545,3106.1,3106.0,0.9361]
[1765662566753,5.90580545,3106.1,3106.0,0.9361]
[1765662566925,1.69314956,3106.1,3106.0,0.9361]
[1765662567948,0.80967847,3106.1,3106.0,0.9361]
[1765662568551,0.81054196,3106.1,3106.0,0.9361]
[1765662570471,0.30154196,3106.1,3106.0,0.9361]
[1765662570638,5.61619785,3106.1,3106.0,0.002]
[1765662570837,8.91966921,3106.1,3106.0,0.002]
[1765662571041,10.2302945,3106.1,3106.0,0.002]
[1765662571436,10.3592683,3106.1,3106.0,0.002]
[1765662573163,4.72165589,3105.9,3105.6,0.002]
[1765662573367,0.30154196,3105.8,3105.6,0.4591]
[1765662573669,0.81054196,3105.7,3105.6,0.4591]
[1765662574069,0.81054196,3105.7,3105.6,0.9367]
[1765662576762,0.81054196,3105.7,3105.6,4.15668969]
[1765662578243,0.81062803,3105.7,3105.6,4.15668969]
[1765662581463,0.81062803,3105.7,3105.6,0.9367]
[1765662583270,3.51062803,3105.7,3105.6,0.9367]
[1765662584587,3.51062803,3105.7,3105.6,4.15668969]
[1765662586453,3.00162803,3105.7,3105.6,4.15668969]
[1765662586660,3.51062803,3105.7,3105.6,4.15668969]
[1765662586862,3.51062803,3105.7,3105.6,4.8945683]
[1765662587471,3.51062803,3105.7,3105.6,4.15668969]
[1765662591390,3.51062803,3105.7,3105.6,3.69958969]
[1765662591890,3.51062803,3105.7,3105.6,0.4796]
[1765662595188,3.51063599,3105.7,3105.6,4.15668969]
[1765662601674,3.51063599,3105.7,3105.6,3.69958969]
[1765662602271,3.59463599,3105.7,3105.6,0.002]
[1765662602495,3.95409959,3105.7,3105.6,0.002]
[1765662602800,4.03809959,3105.7,3105.6,0.002]
[1765662603584,7.2579856,3105.7,3105.6,0.002]
[1765662615496,4.03809959,3105.7,3105.6,0.002]
[1765662615680,3.95409959,3105.7,3105.6,0.002]
[1765662617279,3.95332918,3105.7,3105.6,0.002]
[1765662617609,7.17321519,3105.7,3105.6,0.002]
[1765662618307,3.95332918,3105.7,3105.6,0.002]
[1765662618905,7.17321519,3105.7,3105.6,0.002]
[1765662619606,3.95332918,3105.7,3105.6,0.002]
[1765662625714,7.17321519,3105.7,3105.6,0.002]
[1765662626911,7.25721519,3105.7,3105.6,0.002]
[1765662631120,7.17321519,3105.7,3105.6,0.002]
[1765662634421,7.25721519,3105.7,3105.6,0.002]
[1765662635197,7.17321519,3105.7,3105.6,0.002]
[1765662647447,11.89633121,3105.7,3105.6,0.002]
[1765662647622,11.81233121,3105.7,3105.6,0.002]
[1765662648939,11.81233121,3105.7,3105.6,0.9297]
[1765662649244,11.81233121,3105.7,3105.6,0.4677]
[1765662649743,11.81233121,3105.7,3105.6,0.002]
[1765662649947,11.89633121,3105.7,3105.6,0.002]
[1765662651147,11.81233121,3105.7,3105.6,0.4677]
[1765662651445,11.81233121,3105.7,3105.6,0.9297]
[1765662651751,7.08921519,3105.7,3105.6,0.4677]
[1765662653635,7.08921519,3105.7,3105.6,0.002]
[1765662653959,7.17321519,3105.7,3105.6,0.002]
[1765662654873,7.08921519,3105.7,3105.6,0.002]
[1765662655676,7.17321519,3105.7,3105.6,0.002]
[1765662656058,11.89700893,3105.7,3105.6,0.002]
[1765662656876,11.89799984,3105.7,3105.6,0.002]
[1765662659681,11.89799984,3105.7,3105.5,0.002]
[1765662659880,1.82653893,3105.6,3105.5,0.002]
[1765662660173,6.55027926,3105.6,3105.5,0.002]
[1765662660464,6.55027926,3105.6,3105.5,0.956]
[1765662661280,9.77026895,3105.6,3105.5,0.4721]
[1765662665384,9.77026895,3105.6,3105.5,0.956]
[1765662666011,6.55027926,3105.6,3105.5,0.956]
[1765662666451,9.77026895,3105.6,3105.5,0.956]
[1765662670041,9.77026895,3105.6,3105.5,0.4721]
[1765662670246,9.77026895,3105.6,3105.5,0.956]
[1765662671881,6.55027926,3105.6,3105.5,0.956]
[1765662672759,9.77026895,3105.6,3105.5,0.956]
[1765662673359,6.55027926,3105.6,3105.5,0.956]
[1765662673677,9.77026895,3105.6,3105.5,0.956]
[1765662674674,5.04652862,3105.6,3105.5,0.956]
[1765662674975,9.77026895,3105.6,3105.5,0.956]
[1765662675681,6.55027926,3105.6,3105.5,0.956]
[1765662682991,5.02559682,3105.6,3105.5,0.956]
[1765662683198,5.53459682,3105.6,3105.5,0.956]
[1765662686615,8.75458651,3105.6,3105.5,0.956]
[1765662686786,5.53459682,3105.6,3105.5,0.956]
[1765662688805,8.83858651,3105.6,3105.5,0.002]
[1765662688999,10.35877102,3105.6,3105.5,0.002]
[1765662690488,7.05478133,3105.6,3105.5,0.4737]
[1765662690987,7.05478133,3105.6,3105.5,0.9362]
[1765662691183,0.30185649,3105.6,3105.5,0.9362]
[1765662691603,0.81085649,3105.6,3105.5,0.9362]
[1765662696821,0.30185649,3105.6,3105.5,4.15629338]
[1765662697022,0.81085649,3105.6,3105.5,4.15629338]
[1765662697314,0.81085649,3105.6,3105.5,5.12359067]
[1765662699398,0.81085649,3105.6,3105.5,1.90349729]
[1765662699604,0.81085649,3105.6,3105.5,5.12359067]
[1765662699811,0.30185649,3105.6,3105.5,6.34117871]
[1765662710044,0.30185649,3105.6,3105.5,10.17117871]
[1765662714604,0.509,3106.1,3105.5,18.11358334]
[1765662714937,0.3013478,3106.0,3105.6,0.9342]
[1765662715120,0.3013478,3105.9,3105.8,3.21978234]
[1765662715321,0.3013478,3105.9,3105.8,4.83409947]
[1765662715716,0.3013478,3105.9,3105.8,5.34309947]
[1765662718840,0.3013478,3105.9,3105.8,9.17309947]
[1765662720323,2.4013478,3105.9,3105.8,9.17309947]
[1765662721934,2.4853478,3105.9,3105.8,3.72878234]
[1765662724114,2.4013478,3105.9,3105.8,3.72878234]
[1765662724444,2.4013478,3105.9,3105.8,4.65288234]
[1765662725644,2.4013478,3105.9,3105.8,4.18158234]
[1765662726150,2.4013478,3105.9,3105.8,4.65288234]
[1765662728354,2.4013478,3105.9,3105.8,4.18158234]
[1765662730774,2.4013478,3105.9,3105.8,3.72878234]
[1765662733956,2.4013478,3105.9,3105.8,7.55878234]
[1765662734831,2.4013478,3105.9,3105.8,8.01158234]
[1765662737049,2.4013478,3105.9,3105.8,7.55878234]